fUST/lending_fUST_20240502
["ID","MTS","AMOUNT","RATE_DAILY","PERIOD"]
[325240899,1714620647548,-1562.12,0.00055068,120]
[325240900,1714620647556,-500.0,0.00055068,30]
[325240901,1714620647566,-500.0,0.00055068,120]
[325240902,1714620647575,-500.0,0.00055068,120]
[325240903,1714620647585,-367.84343916,0.00055068,120]
[325240904,1714620647594,-2788.69,0.00055068,120]
[325240905,1714620647603,-500.0,0.00055068,120]
[325240906,1714620647613,-500.0,0.00055068,120]
[325240907,1714620647622,-530.51,0.00055068,120]
[325240908,1714620647632,-702.6,0.00055068,120]
[325240909,1714620647645,-500.0,0.00055068,120]
[325240910,1714620647654,-1039.25,0.00055068,120]
[325240911,1714620647663,-517.15,0.00055068,120]
[325240912,1714620647674,-500.0,0.00055068,120]
[325240913,1714620647683,-500.0,0.00055068,120]
[325240914,1714620647692,-552.24,0.00055068,120]
[325240915,1714620647701,-500.0,0.00055068,120]
[325240916,1714620647712,-438.39,0.00055068,120]
[325240917,1714620647721,-500.0,0.00055068,120]
[325240918,1714620647731,-607.06,0.00055068,120]
[325240919,1714620647740,-500.0,0.00055068,120]
[325240920,1714620647749,-500.0,0.00055068,120]
[325240921,1714620647759,-3792.7,0.00055068,120]
[325240922,1714620647769,-500.0,0.00055068,120]
[325240923,1714620647778,-160.0,0.00055105,4]
[325240924,1714620647788,-1000.0,0.000556,120]
[325240925,1714620647797,-500.0,0.00055615,120]
[325240926,1714620647807,-500.0,0.00055616,120]
[325240927,1714620647816,-500.0,0.00055616,120]
[325240928,1714620647825,-500.0,0.00055616,120]
[325240929,1714620647835,-827.5,0.00055616,120]
[325240930,1714620647844,-500.0,0.00055616,120]
[325240931,1714620647853,-500.0,0.00055616,120]
[325240932,1714620647862,-500.0,0.00055616,2]
[325240933,1714620647872,-500.0,0.00055616,120]
[325240934,1714620647882,-500.0,0.00055616,120]
[325240935,1714620647891,-500.0,0.00055616,120]
[325240936,1714620647900,-83333.25,0.00055616,120]
[325240937,1714620647909,-500.0,0.00055616,21]
[325240938,1714620647918,-1126.22,0.00055616,120]
[325240939,1714620647927,-500.0,0.00055616,120]
[325240940,1714620647937,-824.34,0.00055616,120]
[325240941,1714620647946,-500.0,0.00055616,120]
[325240942,1714620647955,-500.0,0.00055616,120]
[325240943,1714620647964,-500.0,0.00055616,120]
[325240944,1714620647974,-500.0,0.00055616,120]
[325240945,1714620647983,-2088.52,0.00055616,120]
[325240946,1714620647992,-500.0,0.00055616,2]
[325240947,1714620648002,-1562.12,0.00055616,120]
[325240948,1714620648011,-500.0,0.00055616,30]
[325240949,1714620648020,-500.0,0.00055616,120]
[325240950,1714620648029,-500.0,0.00055616,120]
[325240951,1714620648039,-2788.69,0.00055616,120]
[325240952,1714620648048,-500.0,0.00055616,120]
[325240953,1714620648058,-500.0,0.00055616,120]
[325240954,1714620648068,-530.51,0.00055616,120]
[325240955,1714620648077,-702.6,0.00055616,120]
[325240956,1714620648086,-235.20832503,0.00055616,120]
[325240957,1714620648095,-1039.25,0.00055616,120]
[325240958,1714620648104,-517.15,0.00055616,120]
[325240959,1714620648115,-500.0,0.00055616,120]
[325240960,1714620648124,-500.0,0.00055616,120]
[325240961,1714620648134,-552.24,0.00055616,120]
[325240962,1714620648143,-548.21,0.00055616,120]
[325240963,1714620648153,-500.0,0.00055616,120]
[325240964,1714620648162,-607.06,0.00055616,120]
[325240965,1714620648171,-500.0,0.00055616,120]
[325240966,1714620648181,-500.0,0.00055616,120]
[325240967,1714620648190,-3792.7,0.00055616,120]
[325240968,1714620648199,-500.0,0.00055616,120]
[325240969,1714620648208,-160.0,0.00055809,5]
[325240970,1714620648218,-6240.0,0.00056,30]
[325240971,1714620648227,-1317.0,0.00056,120]
[325240972,1714620648238,-1451.0,0.000561,120]
[325240973,1714620648247,-500.0,0.00056163,120]
[325240974,1714620648259,-500.0,0.00056164,120]
[325240975,1714620648270,-500.0,0.00056164,120]
[325240976,1714620648283,-500.0,0.00056164,120]
[325240977,1714620648295,-827.5,0.00056164,120]
[325240978,1714620648307,-500.0,0.00056164,120]
[325240979,1714620648319,-500.0,0.00056164,120]
[325240980,1714620648330,-500.0,0.00056164,2]
[325240981,1714620648341,-500.0,0.00056164,120]
[325240982,1714620648352,-500.0,0.00056164,120]
[325240983,1714620648363,-500.0,0.00056164,120]
[325240984,1714620648375,-83333.25,0.00056164,120]
[325240985,1714620648386,-500.0,0.00056164,21]
[325240986,1714620648396,-1126.22,0.00056164,120]
[325240987,1714620648407,-500.0,0.00056164,120]
[325240988,1714620648418,-824.34,0.00056164,120]
[325240989,1714620648430,-500.0,0.00056164,120]
[325240990,1714620648442,-500.0,0.00056164,120]
[325240991,1714620648454,-500.0,0.00056164,120]
[325240992,1714620648465,-500.0,0.00056164,120]
[325240993,1714620648475,-2088.52,0.00056164,120]
[325240994,1714620648488,-500.0,0.00056164,2]
[325240995,1714620648500,-1562.12,0.00056164,120]
[325240996,1714620648512,-500.0,0.00056164,30]
[325240997,1714620648523,-500.0,0.00056164,120]
[325240998,1714620648535,-500.0,0.00056164,120]
[325240999,1714620648546,-2788.69,0.00056164,120]
[325241000,1714620648556,-500.0,0.00056164,120]
[325241001,1714620648568,-525.59378121,0.00056164,120]
[325241002,1714620648579,-530.51,0.00056164,120]
[325241003,1714620648590,-702.6,0.00056164,120]
[325241004,1714620648601,-1039.25,0.00056164,120]
[325241005,1714620648613,-517.15,0.00056164,120]
[325241006,1714620648626,-500.0,0.00056164,120]
[325241007,1714620648639,-500.0,0.00056164,120]
[325241008,1714620648651,-552.24,0.00056164,120]
[325241009,1714620648660,-500.0,0.00056164,120]
[325241010,1714620648671,-607.06,0.00056164,120]
[325241011,1714620648682,-500.0,0.00056164,120]
[325241012,1714620648691,-500.0,0.00056164,120]
[325241013,1714620648702,-3792.7,0.00056164,120]
[325241014,1714620648715,-1451.0,0.000562,120]
[325241015,1714620648726,-10000.0,0.00056266,120]
[325241016,1714620648737,-1451.0,0.000563,120]
[325241017,1714620648749,-1451.0,0.000564,120]
[325241018,1714620648761,-1451.0,0.000565,120]
[325241019,1714620648772,-160.0,0.00056512,6]
[325241020,1714620648784,-500.0,0.00056611,120]
[325241021,1714620648795,-1451.0,0.000567,120]
[325241022,1714620648807,-500.0,0.00056711,120]
[325241023,1714620648819,-500.0,0.00056712,120]
[325241024,1714620648830,-500.0,0.00056712,120]
[325241025,1714620648842,-500.0,0.00056712,120]
[325241026,1714620648854,-827.5,0.00056712,120]
[325241027,1714620648866,-500.0,0.00056712,120]
[325241028,1714620648877,-500.0,0.00056712,120]
[325241029,1714620648887,-500.0,0.00056712,2]
[325241030,1714620648896,-500.0,0.00056712,120]
[325241031,1714620648906,-500.0,0.00056712,120]
[325241032,1714620648916,-83333.25,0.00056712,120]
[325241033,1714620648926,-500.0,0.00056712,21]
[325241034,1714620648936,-1126.22,0.00056712,120]
[325241035,1714620648947,-500.0,0.00056712,120]
[325241036,1714620648958,-824.34,0.00056712,120]
[325241037,1714620648969,-500.0,0.00056712,120]
[325241038,1714620648980,-500.0,0.00056712,120]
[325241039,1714620648991,-500.0,0.00056712,120]
[325241040,1714620649002,-500.0,0.00056712,120]
[325241041,1714620649013,-2088.52,0.00056712,120]
[325241042,1714620649022,-500.0,0.00056712,2]
[325241043,1714620649032,-1562.12,0.00056712,120]
[325241044,1714620649042,-500.0,0.00056712,30]
[325241045,1714620649052,-500.0,0.00056712,120]
[325241046,1714620649063,-500.0,0.00056712,120]
[325241047,1714620649073,-2788.69,0.00056712,120]
[325241048,1714620649083,-500.0,0.00056712,120]
[325241049,1714620649094,-530.51,0.00056712,120]
[325241050,1714620649104,-702.6,0.00056712,120]
[325241051,1714620649115,-1039.25,0.00056712,120]
[325241052,1714620649128,-517.15,0.00056712,120]
[325241053,1714620649139,-500.0,0.00056712,120]
[325241054,1714620649149,-500.0,0.00056712,120]
[325241055,1714620649159,-552.24,0.00056712,120]
[325241056,1714620649170,-500.0,0.00056712,120]
[325241057,1714620649180,-607.06,0.00056712,120]
[325241058,1714620649189,-500.0,0.00056712,120]
[325241059,1714620649201,-500.0,0.00056712,120]
[325241060,1714620649211,-1451.0,0.000569,120]
[325241061,1714620649220,-481.41,0.00057,30]
[325241062,1714620649230,-717.616397,0.00057044,2]
[325241063,1714620649242,-1451.0,0.000571,120]
[325241064,1714620649252,-1451.0,0.000572,120]
[325241065,1714620649262,-160.0,0.00057216,7]
[325241066,1714620649272,-500.0,0.00057259,120]
[325241067,1714620649284,-441.52628168,0.0005726,120]
[325241068,1714620649294,-500.0,0.0005726,120]
[325241069,1714620649304,-500.0,0.0005726,120]
[325241070,1714620649314,-827.5,0.0005726,120]
[325241071,1714620649325,-500.0,0.0005726,120]
[325241072,1714620649335,-500.0,0.0005726,120]
[325241073,1714620649345,-500.0,0.0005726,2]
[325241074,1714620649356,-500.0,0.0005726,120]
[325241075,1714620649366,-500.0,0.0005726,120]
[325241076,1714620649377,-83333.25,0.0005726,120]
[325241077,1714620649387,-500.0,0.0005726,21]
[325241078,1714620649397,-1126.22,0.0005726,120]
[325241079,1714620649407,-500.0,0.0005726,120]
[325241080,1714620649417,-824.34,0.0005726,120]
[325241081,1714620649428,-500.0,0.0005726,120]
[325241082,1714620649438,-500.0,0.0005726,120]
[325241083,1714620649447,-206.01407033,0.0005726,120]
[325241084,1714620649457,-500.0,0.0005726,120]
[325241085,1714620649467,-2088.52,0.0005726,120]
[325241086,1714620649477,-500.0,0.0005726,2]
[325241087,1714620649487,-1562.12,0.0005726,120]
[325241088,1714620649498,-500.0,0.0005726,30]
[325241089,1714620649508,-500.0,0.0005726,120]
[325241090,1714620649519,-500.0,0.0005726,120]
[325241091,1714620649529,-2788.69,0.0005726,120]
[325241092,1714620649540,-500.0,0.0005726,120]
[325241093,1714620649550,-530.51,0.0005726,120]
[325241094,1714620649560,-702.6,0.0005726,120]
[325241095,1714620649571,-1039.25,0.0005726,120]
[325241096,1714620649581,-517.15,0.0005726,120]
[325241097,1714620649591,-500.0,0.0005726,120]
[325241098,1714620649602,-500.0,0.0005726,120]
[325241099,1714620649612,-552.24,0.0005726,120]
[325241100,1714620649625,-500.0,0.0005726,120]
[325241101,1714620649637,-607.06,0.0005726,120]
[325241102,1714620649652,-500.0,0.0005726,120]
[325241103,1714620649662,-500.0,0.0005726,120]
[325241104,1714620649672,-10000.0,0.00057266,120]
[325241105,1714620649809,-1451.0,0.000574,120]
[325241106,1714620649821,-703.67,0.00057534,30]
[325241107,1714620649830,-1451.0,0.000577,120]
[325241108,1714620649840,-500.0,0.00057808,120]
[325241109,1714620649850,-500.0,0.00057808,120]
[325241110,1714620649859,-827.5,0.00057808,120]
[325241111,1714620649870,-500.0,0.00057808,120]
[325241112,1714620649880,-500.0,0.00057808,120]
[325241113,1714620649890,-500.0,0.00057808,2]
[325241114,1714620649899,-500.0,0.00057808,120]
[325241115,1714620649909,-500.0,0.00057808,120]
[325241116,1714620649919,-83333.25,0.00057808,120]
[325241117,1714620649928,-500.0,0.00057808,21]
[325241118,1714620649938,-1126.22,0.00057808,120]
[325241119,1714620649947,-500.0,0.00057808,120]
[325241120,1714620649956,-824.34,0.00057808,120]
[325241121,1714620649966,-500.0,0.00057808,120]
[325241122,1714620649976,-500.0,0.00057808,120]
[325241123,1714620649985,-500.0,0.00057808,120]
[325241124,1714620649995,-2088.52,0.00057808,120]
[325241125,1714620650004,-500.0,0.00057808,2]
[325241126,1714620650014,-1562.12,0.00057808,120]
[325241127,1714620650024,-373.44224269,0.00057808,30]
[325241128,1714620650032,-500.0,0.00057808,120]
[325241129,1714620650042,-500.0,0.00057808,120]
[325241130,1714620650051,-2788.69,0.00057808,120]
[325241131,1714620650060,-500.0,0.00057808,120]
[325241132,1714620650069,-530.51,0.00057808,120]
[325241133,1714620650078,-702.6,0.00057808,120]
[325241134,1714620650088,-1039.25,0.00057808,120]
[325241135,1714620650097,-517.15,0.00057808,120]
[325241136,1714620650106,-500.0,0.00057808,120]
[325241137,1714620650115,-500.0,0.00057808,120]
[325241138,1714620650128,-552.24,0.00057808,120]
[325241139,1714620650139,-484.04690144,0.00057808,120]
[325241140,1714620650148,-607.06,0.00057808,120]
[325241141,1714620650157,-211.4845453,0.00057808,120]
[325241142,1714620650167,-500.0,0.00057808,120]
[325241143,1714620650177,-1451.0,0.000579,120]
[325241144,1714620650186,-160.0,0.0005792,8]
[325241145,1714620650196,-1451.0,0.00058,120]
[325241146,1714620650207,-38282.0,0.00058,30]
[325241147,1714620650216,-703.67,0.00058082,35]
[325241148,1714620650226,-1451.0,0.000581,120]
[325241149,1714620650236,-1006.76073138,0.00058149,64]
[325241150,1714620650246,-1451.0,0.000582,120]
[325241151,1714620650256,-171872.63280101,0.0005826,120]
[325241152,1714620650266,-10000.0,0.00058266,120]
[325241153,1714620650275,-10000.0,0.00058266,120]
[325241154,1714620650285,-2000.42301708,0.000583,120]
[325241155,1714620650294,-500.0,0.00058356,120]
[325241156,1714620650303,-500.0,0.00058356,120]
[325241157,1714620650312,-827.5,0.00058356,120]
[325241158,1714620650322,-500.0,0.00058356,120]
[325241159,1714620650331,-235.92215648,0.00058356,120]
[325241160,1714620650340,-500.0,0.00058356,2]
[325241161,1714620650349,-566.13222227,0.00058356,120]
[325241162,1714620650358,-500.0,0.00058356,120]
[325241163,1714620650369,-83333.25,0.00058356,120]
[325241164,1714620650378,-500.0,0.00058356,21]
[325241165,1714620650388,-1126.22,0.00058356,120]
[325241166,1714620650397,-500.0,0.00058356,120]
[325241167,1714620650406,-824.34,0.00058356,120]
[325241168,1714620650415,-500.0,0.00058356,120]
[325241169,1714620650425,-500.0,0.00058356,120]
[325241170,1714620650434,-500.0,0.00058356,120]
[325241171,1714620650443,-2088.52,0.00058356,120]
[325241172,1714620650453,-500.0,0.00058356,2]
[325241173,1714620650463,-1562.12,0.00058356,120]
[325241174,1714620650472,-500.0,0.00058356,120]
[325241175,1714620650482,-500.0,0.00058356,120]
[325241176,1714620650491,-2788.69,0.00058356,120]
[325241177,1714620650500,-500.0,0.00058356,120]
[325241178,1714620650509,-530.51,0.00058356,120]
[325241179,1714620650518,-702.6,0.00058356,120]
[325241180,1714620650527,-1039.25,0.00058356,120]
[325241181,1714620650536,-517.15,0.00058356,120]
[325241182,1714620650545,-500.0,0.00058356,120]
[325241183,1714620650554,-500.0,0.00058356,120]
[325241184,1714620650563,-552.24,0.00058356,120]
[325241185,1714620650573,-607.06,0.00058356,120]
[325241186,1714620650582,-500.0,0.00058356,120]
[325241187,1714620650591,-5000.0,0.0005839,60]
[325241188,1714620650600,-269.0,0.0005841,35]
[325241189,1714620650609,-269.0,0.0005842,35]
[325241190,1714620650618,-750.98871158,0.0005843,30]
[325241191,1714620650627,-269.0,0.0005843,35]
[325241192,1714620650641,-2000000.0,0.0005844,30]
[325241193,1714620650650,-160.0,0.00058623,9]
[325241194,1714620650659,-703.67,0.0005863,40]
[325241195,1714620650669,-151.0,0.00058822,120]
[325241196,1714620650679,-500.0,0.00058904,120]
[325241197,1714620650688,-500.0,0.00058904,120]
[325241198,1714620650697,-827.5,0.00058904,120]
[325241199,1714620650706,-500.0,0.00058904,120]
[325241200,1714620650717,-500.0,0.00058904,2]
[325241201,1714620650727,-500.0,0.00058904,120]
[325241202,1714620650736,-83333.25,0.00058904,120]
[325241203,1714620650744,-500.0,0.00058904,21]
[325241204,1714620650754,-1126.22,0.00058904,120]
[325241205,1714620650763,-500.0,0.00058904,120]
[325241206,1714620650772,-824.34,0.00058904,120]
[325241207,1714620650782,-500.0,0.00058904,120]
[325241208,1714620650791,-500.0,0.00058904,120]
[325241209,1714620650800,-280.00029576,0.00058904,120]
[325241210,1714620650809,-2088.52,0.00058904,120]
[325241211,1714620650818,-500.0,0.00058904,2]
[325241212,1714620650827,-1562.12,0.00058904,120]
[325241213,1714620650836,-500.0,0.00058904,120]
[325241214,1714620650845,-500.0,0.00058904,120]
[325241215,1714620650854,-2788.69,0.00058904,120]
[325241216,1714620650863,-500.0,0.00058904,120]
[325241217,1714620650872,-702.6,0.00058904,120]
[325241218,1714620650882,-530.51,0.00058904,120]
[325241219,1714620650891,-1039.25,0.00058904,120]
[325241220,1714620650900,-517.15,0.00058904,120]
[325241221,1714620650909,-500.0,0.00058904,120]
[325241222,1714620650918,-500.0,0.00058904,120]
[325241223,1714620650927,-552.24,0.00058904,120]
[325241224,1714620650936,-607.06,0.00058904,120]
[325241225,1714620650945,-500.0,0.00058904,120]
[325241226,1714620650954,-703.67,0.00059178,45]
[325241227,1714620650963,-10000.0,0.00059266,120]
[325241228,1714620650972,-160.0,0.00059327,10]
[325241229,1714620650981,-500.0,0.00059452,120]
[325241230,1714620650990,-378.00668149,0.00059452,120]
[325241231,1714620650999,-500.0,0.00059452,120]
[325241232,1714620651008,-500.0,0.00059452,2]
[325241233,1714620651018,-256.52200251,0.00059452,120]
[325241234,1714620651027,-500.0,0.00059452,21]
[325241235,1714620651036,-1126.22,0.00059452,120]
[325241236,1714620651046,-500.0,0.00059452,120]
[325241237,1714620651055,-824.34,0.00059452,120]
[325241238,1714620651064,-500.0,0.00059452,120]
[325241239,1714620651073,-500.0,0.00059452,120]
[325241240,1714620651082,-2088.52,0.00059452,120]
[325241241,1714620651091,-500.0,0.00059452,2]
[325241242,1714620651100,-1562.12,0.00059452,120]
[325241243,1714620651110,-301.34244254,0.00059452,120]
[325241244,1714620651119,-500.0,0.00059452,120]
[325241245,1714620651128,-2788.69,0.00059452,120]
[325241246,1714620651138,-500.0,0.00059452,120]
[325241247,1714620651148,-702.6,0.00059452,120]
[325241248,1714620651157,-530.51,0.00059452,120]
[325241249,1714620651167,-1039.25,0.00059452,120]
[325241250,1714620651177,-517.15,0.00059452,120]
[325241251,1714620651186,-500.0,0.00059452,120]
[325241252,1714620651195,-500.0,0.00059452,120]
[325241253,1714620651204,-552.24,0.00059452,120]
[325241254,1714620651214,-607.06,0.00059452,120]
[325241255,1714620651224,-500.0,0.00059452,120]
[325241256,1714620651233,-703.67,0.00059726,50]
[325241257,1714620651242,-500.0,0.00059999,120]
[325241258,1714620651251,-500.0,0.00059999,120]
[325241259,1714620651261,-500.0,0.00059999,2]
[325241260,1714620651271,-353.10404786,0.00059999,21]
[325241261,1714620651280,-1126.22,0.00059999,120]
[325241262,1714620651290,-500.0,0.00059999,120]
[325241263,1714620651299,-824.34,0.00059999,120]
[325241264,1714620651308,-500.0,0.00059999,120]
[325241265,1714620651318,-500.0,0.00059999,120]
[325241266,1714620651327,-2088.52,0.00059999,120]
[325241267,1714620651336,-500.0,0.00059999,2]
[325241268,1714620651346,-1562.12,0.00059999,120]
[325241269,1714620651355,-500.0,0.00059999,120]
[325241270,1714620651365,-2788.69,0.00059999,120]
[325241271,1714620651376,-500.0,0.00059999,120]
[325241272,1714620651386,-702.6,0.00059999,120]
[325241273,1714620651395,-530.51,0.00059999,120]
[325241274,1714620651405,-1039.25,0.00059999,120]
[325241275,1714620651414,-517.15,0.00059999,120]
[325241276,1714620651423,-500.0,0.00059999,120]
[325241277,1714620651433,-500.0,0.00059999,120]
[325241278,1714620651442,-552.24,0.00059999,120]
[325241279,1714620651452,-607.06,0.00059999,120]
[325241280,1714620651462,-500.0,0.00059999,120]
[325241281,1714620651471,-160.0,0.00060031,11]
[325241282,1714620651481,-703.67,0.00060273,55]
[325241283,1714620651491,-500.0,0.00060547,120]
[325241284,1714620651500,-500.0,0.00060547,120]
[325241285,1714620651510,-500.0,0.00060547,2]
[325241286,1714620651519,-1126.22,0.00060547,120]
[325241287,1714620651528,-500.0,0.00060547,120]
[325241288,1714620651538,-824.34,0.00060547,120]
[325241289,1714620651547,-500.0,0.00060547,120]
[325241290,1714620651556,-500.0,0.00060547,120]
[325241291,1714620651565,-2088.52,0.00060547,120]
[325241292,1714620651575,-500.0,0.00060547,2]
[325241293,1714620651584,-1562.12,0.00060547,120]
[325241294,1714620651594,-500.0,0.00060547,120]
[325241295,1714620651603,-2788.69,0.00060547,120]
[325241296,1714620651613,-500.0,0.00060547,120]
[325241297,1714620651622,-702.6,0.00060547,120]
[325241298,1714620651636,-530.51,0.00060547,120]
[325241299,1714620651645,-1039.25,0.00060547,120]
[325241300,1714620651655,-517.15,0.00060547,120]
[325241301,1714620651664,-517.95660146,0.00060547,120]
[325241302,1714620651675,-297.01681764,0.00060547,120]
[325241303,1714620651684,-552.24,0.00060547,120]
[325241304,1714620651694,-607.06,0.00060547,120]
[325241305,1714620651703,-500.0,0.00060547,120]
[325241306,1714620651715,-10000.0,0.0006066,120]
[325241307,1714620651724,-160.0,0.00060735,12]
[325241308,1714620651733,-703.67,0.00060821,60]
[325241309,1714620651742,-3540.0,0.00061,120]
[325241310,1714620651752,-500.0,0.00061095,120]
[325241311,1714620651761,-500.0,0.00061095,120]
[325241312,1714620651771,-500.0,0.00061095,2]
[325241313,1714620651780,-1126.22,0.00061095,120]
[325241314,1714620651789,-500.0,0.00061095,120]
[325241315,1714620651799,-824.34,0.00061095,120]
[325241316,1714620651809,-216.40311409,0.00061095,120]
[325241317,1714620651819,-500.0,0.00061095,120]
[325241318,1714620651829,-2088.52,0.00061095,120]
[325241319,1714620651839,-500.0,0.00061095,2]
[325241320,1714620651848,-1562.12,0.00061095,120]
[325241321,1714620651857,-500.0,0.00061095,120]
[325241322,1714620651866,-2788.69,0.00061095,120]
[325241323,1714620651878,-500.0,0.00061095,120]
[325241324,1714620651887,-702.6,0.00061095,120]
[325241325,1714620651896,-530.51,0.00061095,120]
[325241326,1714620651906,-1039.25,0.00061095,120]
[325241327,1714620651915,-517.15,0.00061095,120]
[325241328,1714620651924,-552.24,0.00061095,120]
[325241329,1714620651933,-607.06,0.00061095,120]
[325241330,1714620651942,-543.19118674,0.00061095,120]
[325241331,1714620651951,-703.67,0.00061369,65]
[325241332,1714620651961,-153.70268778,0.00061425,120]
[325241333,1714620651970,-160.0,0.00061438,13]
[325241334,1714620651980,-500.0,0.00061643,120]
[325241335,1714620651989,-500.0,0.00061643,120]
[325241336,1714620651999,-508.4138581,0.00061643,2]
[325241337,1714620652009,-500.0,0.00061643,120]
[325241338,1714620652018,-1126.22,0.00061643,120]
[325241339,1714620652028,-824.34,0.00061643,120]
[325241340,1714620652037,-500.0,0.00061643,120]
[325241341,1714620652047,-2088.52,0.00061643,120]
[325241342,1714620652057,-500.0,0.00061643,2]
[325241343,1714620652066,-1562.12,0.00061643,120]
[325241344,1714620652075,-500.0,0.00061643,120]
[325241345,1714620652084,-2788.69,0.00061643,120]
[325241346,1714620652094,-500.0,0.00061643,120]
[325241347,1714620652103,-702.6,0.00061643,120]
[325241348,1714620652112,-530.51,0.00061643,120]
[325241349,1714620652122,-1039.25,0.00061643,120]
[325241350,1714620652132,-517.15,0.00061643,120]
[325241351,1714620652142,-552.24,0.00061643,120]
[325241352,1714620652151,-607.06,0.00061643,120]
[325241353,1714620652160,-10000.0,0.00061666,120]
[325241354,1714620652170,-1000.0,0.00061819,120]
[325241355,1714620652179,-703.67,0.00061917,70]
[325241356,1714620652189,-153.70268778,0.00062103,120]
[325241357,1714620652198,-160.0,0.00062142,14]
[325241358,1714620652207,-10594.99994698,0.00062191,120]
[325241359,1714620652216,-500.0,0.00062191,120]
[325241360,1714620652228,-500.0,0.00062191,120]
[325241361,1714620652238,-500.0,0.00062191,120]
[325241362,1714620652249,-1126.22,0.00062191,120]
[325241363,1714620652258,-824.34,0.00062191,120]
[325241364,1714620652268,-500.0,0.00062191,120]
[325241365,1714620652277,-2088.52,0.00062191,120]
[325241366,1714620652291,-204.2291388,0.00062191,2]
[325241367,1714620652300,-1562.12,0.00062191,120]
[325241368,1714620652310,-500.0,0.00062191,120]
[325241369,1714620652319,-2788.69,0.00062191,120]
[325241370,1714620652328,-620.95364663,0.00062191,120]
[325241371,1714620652337,-702.6,0.00062191,120]
[325241372,1714620652346,-530.51,0.00062191,120]
[325241373,1714620652355,-1039.25,0.00062191,120]
[325241374,1714620652364,-517.15,0.00062191,120]
[325241375,1714620652375,-552.24,0.00062191,120]
[325241376,1714620652384,-607.06,0.00062191,120]
[325241377,1714620652393,-151.0,0.00062274,120]
[325241378,1714620652402,-703.67,0.00062465,75]
[325241379,1714620652411,-2695.19883523,0.000625,120]
[325241380,1714620652420,-10000.0,0.00062666,120]
[325241381,1714620652429,-500.0,0.00062739,120]
[325241382,1714620652439,-500.905708,0.00062739,120]
[325241383,1714620652447,-500.0,0.00062739,120]
[325241384,1714620652457,-1126.22,0.00062739,120]
[325241385,1714620652466,-824.34,0.00062739,120]
[325241386,1714620652475,-207.8226258,0.00062739,120]
[325241387,1714620652484,-2088.52,0.00062739,120]
[325241388,1714620652493,-1562.12,0.00062739,120]
[325241389,1714620652503,-497.25001716,0.00062739,120]
[325241390,1714620652512,-2788.69,0.00062739,120]
[325241391,1714620652521,-702.6,0.00062739,120]
[325241392,1714620652531,-530.51,0.00062739,120]
[325241393,1714620652541,-1039.25,0.00062739,120]
[325241394,1714620652550,-517.15,0.00062739,120]
[325241395,1714620652560,-552.24,0.00062739,120]
[325241396,1714620652570,-607.06,0.00062739,120]
[325241397,1714620652580,-717.616397,0.00062754,2]
[325241398,1714620652589,-160.0,0.00062846,15]